bitfinex/quotes_ETHUSD_20250406
["timestamp","ask_amount","ask_price","bid_price","bid_amount"]
[1743967518847,6.32400153,1617.2,1617.1,13.34897963]
[1743967519048,1.53e-06,1617.2,1617.1,23.48710383]
[1743967519282,1.53e-06,1617.2,1617.1,26.51670455]
[1743967520090,1.53e-06,1617.2,1617.1,16.76348035]
[1743967520386,1.53e-06,1617.2,1617.1,7.57387963]
[1743967521494,1.53e-06,1617.2,1617.0,6.18429]
[1743967521703,1.53e-06,1617.2,1616.8,7.11995]
[1743967522013,6.46342,1617.5,1616.8,7.11995]
[1743967522014,6.18242,1617.5,1616.9,6.16]
[1743967522202,6.18242,1617.5,1617.0,6.1841]
[1743967522371,6.18276,1617.4,1616.7,6.18538]
[1743967522575,6.18483,1616.9,1616.5,6.18591]
[1743967522786,3.281,1617.3,1616.6,6.18553]
[1743967522787,6.18414,1617.1,1616.6,6.18553]
[1743967523085,6.18414,1617.1,1616.6,12.37116]
[1743967523086,6.18433,1617.0,1616.6,12.37116]
[1743967523395,12.36991,1616.9,1616.5,6.18616]
[1743967523573,6.18506,1616.8,1616.4,6.18654]
[1743967523769,6.18467,1616.9,1616.3,6.18694]
[1743967524069,6.18493,1616.9,1616.5,6.18595]
[1743967524274,6.1843,1617.0,1616.6,6.18568]
[1743967524594,6.18582,1616.7,1616.3,6.18695]
[1743967524795,6.18582,1616.7,1616.3,6.18675]
[1743967525096,6.18634,1616.5,1616.2,6.18734]
[1743967525599,6.18634,1616.5,1616.1,6.18746]
[1743967525811,6.18743,1616.2,1615.8,6.18887]
[1743967525991,6.18804,1616.1,1615.6,6.18945]
[1743967526159,6.18802,1616.1,1615.8,6.18886]
[1743967526365,6.46797,1616.3,1615.9,6.18827]
[1743967526674,0.281,1616.3,1616.0,6.1878]
[1743967526865,6.18663,1616.4,1616.0,6.1878]
[1743967527065,6.187,1616.3,1615.9,6.18839]
[1743967527459,6.18826,1616.0,1615.6,6.1896]
[1743967527663,7.424333,1616.3,1615.6,6.1896]
[1743967527664,6.18784,1616.1,1615.7,6.18926]
[1743967527878,6.18702,1616.3,1615.8,6.25038537]
[1743967528164,6.18772,1616.2,1615.8,12.37724]
[1743967528375,6.18662,1616.4,1615.9,6.18812]
[1743967528605,6.18718,1616.3,1615.9,6.18812]
[1743967528878,10.695,1616.6,1616.3,6.18685]
[1743967529103,6.18509,1616.8,1616.4,6.18657]
[1743967529305,6.46571,1616.9,1616.4,6.18643]
[1743967529611,6.186,1616.6,1616.2,6.18721]
[1743967529772,6.18658,1616.5,1616.0,6.18807]
[1743967529971,6.18537,1616.8,1615.9,8.332596]
[1743967530208,6.18638,1616.5,1615.9,8.332596]
[1743967530411,0.281,1616.9,1616.4,6.18643]
[1743967530716,0.281,1616.9,1615.7,3.0]
[1743967530717,6.18697,1616.3,1615.6,12.34946]
[1743967531011,6.1879,1616.1,1615.7,6.18913]
[1743967531169,12.37589,1616.1,1615.7,6.18913]
[1743967531373,6.18835,1616.0,1615.6,6.18956]
[1743967531586,6.18799,1616.1,1615.4,6.19041]
[1743967531786,6.4701,1615.8,1615.3,6.19044]
[1743967532033,6.4701,1615.8,1615.3,6.809484]
[1743967532611,6.4701,1615.8,1615.3,13.000064]
[1743967532777,0.281,1615.8,1615.3,13.000024]
[1743967532978,0.281,1616.1,1615.7,12.37827]
[1743967533200,0.281,1616.1,1615.5,6.19002]
[1743967533404,0.281,1616.4,1615.6,1.617902]
[1743967533591,6.18752,1616.2,1615.6,6.18927]
[1743967533797,6.18835,1616.0,1615.5,6.18998]
[1743967534002,6.18948,1615.7,1615.3,0.619044]
[1743967534174,6.18811,1616.0,1615.4,6.19025]
[1743967534377,10.3793,1616.1,1615.2,6.19117]
[1743967534680,6.46835,1616.2,1615.7,6.18926]
[1743967534984,0.281,1616.2,1615.4,12.38057]
[1743967535313,6.18804,1616.1,1615.6,6.1893]
[1743967535674,6.18804,1616.1,1615.6,12.37878]
[1743967535880,9.46839,1616.2,1615.9,6.18836]
[1743967535881,0.281,1616.2,1615.9,6.18836]
[1743967536075,0.281,1616.2,1615.6,1.237878]
[1743967536315,6.18798,1616.1,1615.6,6.18965]
[1743967536503,6.18813,1616.0,1615.5,7.19372]
[1743967536697,6.46852,1616.2,1615.5,1.0037]
[1743967536895,6.18945,1615.7,1615.3,6.16]
[1743967537115,6.18967,1615.6,1615.1,6.19154]
[1743967537327,6.18967,1615.6,1615.0,6.19178]
[1743967537328,6.19,1615.6,1615.0,6.19178]
[1743967537481,0.281,1615.7,1615.2,6.191]
[1743967537819,0.281,1615.7,1615.2,6.19116]
[1743967538002,10.684,1616.0,1615.5,6.19002]
[1743967538331,10.684,1616.0,1615.6,6.18942]
[1743967538505,0.281,1616.0,1615.7,12.37829]
[1743967538682,6.18793,1616.1,1615.6,0.47218868]
[1743967538885,9.46812,1616.3,1615.6,6.18963]
[1743967539218,0.281,1616.3,1615.8,6.18887]
[1743967539580,6.32261416,1616.2,1615.8,6.16]
[1743967539781,6.32261416,1616.2,1615.8,12.34867]
[1743967540121,6.32261416,1616.2,1616.0,6.18787]
[1743967540483,6.32261416,1616.2,1615.9,6.65455998]
[1743967540878,6.32261416,1616.2,1615.9,12.84285998]
[1743967541078,6.32261416,1616.2,1615.9,6.65435998]
[1743967541490,6.32261416,1616.2,1615.9,12.84268998]
[1743967541689,6.32261416,1616.2,1615.9,6.65435998]
[1743967541985,6.32261416,1616.2,1615.9,12.84271998]
[1743967542179,6.32261416,1616.2,1616.0,12.43779786]
[1743967542379,6.32261416,1616.2,1616.1,6.18773]
[1743967542580,6.60361416,1616.6,1616.2,6.18725]
[1743967542803,6.60361416,1616.6,1616.1,6.18773]
[1743967543002,7.88252458,1616.6,1616.0,6.16]
[1743967543210,14.06850458,1616.6,1616.0,6.16]
[1743967543410,7.88252458,1616.6,1616.0,6.16]
[1743967543627,6.18694,1616.4,1616.0,6.16]
[1743967543822,6.18836,1616.0,1615.5,6.16]
[1743967544035,6.18864,1615.9,1615.5,6.16]
[1743967544325,6.18984,1615.6,1615.3,6.16]
[1743967544539,7.427756,1615.6,1614.9,19.782708]
[1743967544727,6.19062,1615.4,1614.9,7.398438]
[1743967544929,7.427626,1615.6,1615.0,6.19192]
[1743967545090,7.427626,1615.6,1614.9,12.35232]
[1743967545429,0.2367,1615.5,1614.9,6.16]
[1743967545801,0.2367,1615.5,1614.9,12.35218]
[1743967545995,0.2367,1615.5,1614.9,6.16]
[1743967546340,3.0,1616.0,1615.2,6.19117]
[1743967546341,0.2367,1615.8,1615.2,6.19117]
[1743967546541,0.2367,1615.8,1615.4,6.19039]
[1743967546745,0.2367,1616.1,1615.7,6.18918]
[1743967546901,0.2367,1616.1,1615.7,12.34903]
[1743967547096,6.32261416,1616.2,1615.9,6.18848]
[1743967547301,6.32261416,1616.2,1615.9,6.16]
[1743967547546,6.32261416,1616.2,1616.0,6.18787]
[1743967547705,6.32261416,1616.2,1615.9,6.16]
[1743967547901,6.32261416,1616.2,1616.0,6.18791]
[1743967548225,6.32261416,1616.2,1615.9,6.16]
[1743967548541,6.32261416,1616.2,1616.0,6.18795]
[1743967548713,12.74603416,1616.4,1615.9,6.16]
[1743967548908,20.82623158,1616.4,1615.9,6.16]
[1743967549109,8.21585158,1616.4,1615.9,6.16]
[1743967549438,6.32261416,1616.4,1616.2,6.18719]
[1743967549638,6.32261416,1616.4,1616.2,6.66206207]
[1743967549808,6.32261416,1616.4,1615.9,6.16]
[1743967550009,13.76024558,1616.4,1615.9,6.16]
[1743967550225,6.18699,1616.3,1615.9,6.16]
[1743967550437,0.2367,1616.3,1615.9,6.16]
[1743967551411,6.32261416,1616.4,1616.0,6.18785]
[1743967551614,0.2367,1616.6,1616.0,6.18785]
[1743967551940,0.2367,1616.6,1616.1,6.18767]
[1743967552124,6.18657,1616.5,1616.0,6.16]
[1743967552333,1.917815,1616.6,1616.0,6.16]
[1743967552502,6.18623,1616.5,1616.0,6.16]
[1743967552704,8.104005,1616.6,1616.0,6.16]
[1743967552906,8.104005,1616.6,1616.0,12.3481]
[1743967553101,8.104005,1616.6,1616.0,6.16]
[1743967553306,8.103725,1616.6,1616.0,6.16]
[1743967553540,0.8103725,1616.5,1616.0,6.16]
[1743967553728,8.103775,1616.6,1616.0,6.16]
[1743967553933,8.103775,1616.6,1616.0,12.3481]
[1743967554104,1.917815,1616.6,1616.0,18.53601]
[1743967554308,6.32261416,1616.8,1616.7,6.18543]
[1743967554573,6.32261416,1616.8,1616.7,12.34543]
[1743967554706,0.2367,1617.4,1616.9,6.18451]
[1743967554907,0.2367,1617.4,1616.8,0.06183968]
[1743967555141,6.18343,1617.3,1616.7,6.62156987]
[1743967555320,0.642013,1617.3,1616.7,12.80678987]
[1743967555536,6.18415,1617.1,1616.7,6.16]
[1743967555731,3.0,1617.3,1616.7,6.16]
[1743967555941,6.18415,1617.1,1616.7,6.16]
[1743967556145,6.18444,1617.0,1616.7,6.16]
[1743967556309,6.18523,1616.8,1616.5,6.16]
[1743967556512,0.2367,1616.9,1616.5,6.16]
[1743967557049,0.2367,1616.9,1616.2,12.34732]
[1743967557210,6.18567,1616.7,1616.2,6.16]
[1743967557410,0.2367,1616.9,1616.2,7.24616227]
[1743967557709,6.18589,1616.6,1616.2,6.16]
[1743967557948,6.18697,1616.3,1616.2,6.16]
[1743967558247,6.18859,1615.9,1615.7,6.16]
[1743967558447,6.18888,1615.8,1615.7,6.16]
[1743967558652,6.19003,1615.5,1615.4,6.16]
[1743967559023,6.1898,1615.6,1615.4,6.16]
[1743967559222,12.38135,1615.4,1614.8,6.16]
[1743967559451,6.19118,1615.2,1614.7,6.16]
[1743967559661,10.6147,1615.3,1614.7,6.16]
[1743967559958,10.6147,1615.3,1614.8,0.616]
[1743967560253,10.6147,1615.3,1614.7,6.16]
[1743967560550,6.19181,1615.1,1614.7,6.16]
[1743967560709,6.19157,1615.1,1614.7,6.16]
[1743967560907,6.19213,1615.0,1614.7,6.16]
[1743967561132,10.6147,1615.3,1614.7,6.16]
[1743967561337,3.0,1615.6,1614.9,6.19233]
[1743967561338,0.2367,1615.6,1614.9,6.19233]
[1743967561614,0.2367,1615.6,1615.0,6.16]
[1743967561947,0.2367,1615.6,1615.0,12.3518]
[1743967562165,0.2367,1615.6,1614.8,0.616]
[1743967562166,3.8075648,1615.6,1615.1,6.16]
[1743967562369,3.8075648,1615.6,1615.2,6.19098]
[1743967562544,3.8075648,1615.6,1615.1,13.29477]
[1743967562744,3.8075648,1615.6,1615.1,13.2946]
[1743967562939,3.8075648,1615.6,1615.2,6.19099]
[1743967563269,4.18832128,1615.6,1615.1,6.16]
[1743967563435,3.8075648,1615.6,1615.1,6.16]
[1743967563635,9.9974548,1615.6,1615.1,6.16]
[1743967563835,6.19019,1615.5,1615.1,6.16]
[1743967564059,12.38054,1615.5,1615.1,6.16]
[1743967564265,20.3722848,1615.6,1615.1,6.16]
[1743967564433,8.22725848,1615.5,1615.1,6.16]
[1743967564765,6.19097,1615.3,1614.6,6.16]
[1743967564972,6.19177,1615.1,1614.6,6.16]
[1743967565271,6.19333,1614.7,1614.3,6.16]
[1743967565467,0.619333,1614.7,1614.3,6.16]
[1743967565769,10.373,1614.8,1614.3,6.16]
[1743967565770,16.4129189,1614.8,1614.3,6.16]
[1743967565930,6.19333,1614.7,1614.3,6.16]
[1743967566131,6.19333,1614.7,1613.9,0.9625]
[1743967566132,6.19452,1614.4,1613.9,6.16]
[1743967566338,12.3897,1614.3,1613.9,6.16]
[1743967566654,0.2367,1614.5,1613.9,6.16]
[1743967567031,6.43061,1614.5,1613.9,6.16]
[1743967567228,0.2367,1614.5,1613.7,6.61684925]
[1743967567479,0.2367,1614.9,1614.1,0.9625]
[1743967567654,6.2032242,1615.3,1614.1,0.9625]
[1743967567655,0.2367,1615.2,1614.2,6.22193785]
[1743967567857,0.2367,1615.2,1614.7,6.19302]
[1743967568057,10.371,1615.3,1614.8,6.16]
[1743967568232,0.2367,1615.5,1614.9,6.776]
[1743967568433,10.373,1615.7,1615.1,6.19139]
[1743967568669,10.373,1615.7,1615.2,12.35117]
[1743967568871,4.0442648,1615.8,1615.2,12.35091]
[1743967569165,4.0442648,1615.8,1615.2,6.16]
[1743967569353,4.0442648,1615.8,1615.3,6.80651]
[1743967569551,4.0442648,1615.8,1615.3,12.96651]
[1743967569768,4.0442648,1615.8,1615.3,6.16]
[1743967569942,10.2333048,1615.8,1615.3,6.16]
[1743967570146,6.18943,1615.7,1615.3,6.16]
[1743967570347,4.0442648,1615.8,1615.3,6.16]
[1743967570561,4.0442648,1615.8,1615.3,12.35055]
[1743967570763,4.0442648,1615.8,1615.4,1.235055]
[1743967570966,0.2367,1615.8,1615.4,1.235055]
[1743967571187,0.2367,1615.8,1615.3,6.16]
[1743967571547,0.2367,1615.8,1615.4,6.19035]
[1743967571785,0.2367,1615.8,1615.5,6.18986]
[1743967571978,10.367,1616.2,1615.7,6.189]
[1743967572153,10.367,1616.2,1615.7,7.3949]
[1743967572489,0.2367,1616.4,1615.8,6.18868]
[1743967572668,3.2367,1616.4,1615.8,6.18868]
[1743967572873,0.2367,1616.7,1616.2,6.18706]
[1743967573296,10.6027,1617.0,1616.5,6.18595]
[1743967573475,18.77577492,1617.1,1616.6,6.18548]
[1743967573655,18.77577492,1617.1,1616.8,6.18477]
[1743967573852,18.77577492,1617.1,1616.5,6.61430757]
[1743967574061,20.65335241,1617.1,1616.5,6.16]
[1743967574391,6.18419,1617.1,1616.5,6.16]
[1743967574686,6.18445,1617.0,1616.5,6.16]
[1743967574886,6.18419,1617.1,1616.5,6.16]
[1743967575084,6.41994,1617.3,1616.5,6.16]
[1743967575288,6.18376,1617.2,1616.5,6.16]
[1743967575500,6.18393,1617.1,1616.5,6.16]
[1743967575649,6.18393,1617.1,1616.2,6.18731]
[1743967575650,6.18598,1616.6,1616.2,6.16]
[1743967575851,16.54644,1616.7,1616.2,6.16]
[1743967576051,18.201084,1616.7,1616.2,6.16]
[1743967576265,6.18655,1616.5,1616.0,6.16]
[1743967576461,6.18783,1616.1,1615.7,6.16]
[1743967576762,12.015644,1616.7,1615.9,6.18832]
[1743967576763,7.840354,1616.7,1615.9,6.18832]
[1743967576960,0.2374,1616.8,1616.2,6.18701]
[1743967577195,0.2374,1616.8,1616.0,6.16]
[1743967577196,6.18572,1616.7,1616.0,6.16]
[1743967577403,6.42245,1616.8,1616.0,6.16]
[1743967577404,6.1864,1616.5,1616.0,6.16]
[1743967577607,6.18729,1616.3,1615.7,6.16]
[1743967577906,6.18729,1616.3,1615.5,1.0028]
[1743967577907,0.2374,1616.2,1615.5,1.0028]
[1743967578075,0.2374,1616.2,1615.5,7.19256]
[1743967578269,0.2374,1616.2,1615.6,6.18937]
[1743967578600,10.357,1616.3,1615.7,12.34917]
[1743967578798,16.54429,1616.3,1615.7,6.16]
[1743967579003,6.18767,1616.2,1615.7,6.16]
[1743967579202,10.357,1616.3,1615.7,6.16]
[1743967579499,6.18868,1615.9,1615.7,6.16]
[1743967579685,6.18868,1615.9,1615.2,7.13817]
[1743967579686,6.807548,1615.9,1615.3,6.16]
[1743967579891,6.42666,1615.7,1615.3,6.16]
[1743967580194,6.19032,1615.5,1615.0,6.16]
[1743967580396,16.7797,1615.7,1615.0,6.16]
[1743967580603,0.618868,1615.9,1615.3,6.19075]
[1743967580763,6.807408,1615.9,1615.2,6.19117]
[1743967580965,6.807408,1615.9,1615.2,12.38221]
[1743967581193,6.18892,1615.8,1615.1,13.91448]
[1743967581380,0.6807408,1615.8,1615.2,6.19116]
[1743967581697,10.66448049,1615.8,1615.1,13.2983]
[1743967581902,6.18983,1615.6,1615.1,7.107]
[1743967582210,12.37894,1615.7,1615.1,7.107]
[1743967582415,4.47558049,1615.8,1615.2,6.19096]
[1743967582576,4.47558049,1615.8,1615.1,13.29854]
[1743967582779,4.47558049,1615.8,1615.2,6.19097]
[1743967583199,4.47558049,1615.8,1615.3,6.19054]
[1743967583381,3.79483969,1615.8,1615.6,6.18944]
[1743967583600,3.79483969,1615.8,1615.7,12.34926]
[1743967584475,0.2374,1616.4,1615.9,12.37658]
[1743967584806,1.29614,1616.4,1616.0,6.16]
[1743967585010,1.05874,1616.4,1616.0,6.16]
[1743967585710,7.24534,1616.4,1616.0,6.16]
[1743967585912,6.911754,1616.3,1616.0,6.16]
[1743967586116,6.4248,1616.2,1615.8,6.16]
[1743967586320,0.2374,1616.2,1615.8,6.16]
[1743967586478,6.42476,1616.2,1615.8,6.16]
[1743967586682,0.642476,1616.1,1615.8,6.16]
[1743967587108,6.18806,1616.1,1615.8,6.16]
[1743967587315,6.18812,1616.0,1615.8,6.16]
[1743967587482,12.37647,1616.0,1615.4,6.16]
[1743967587684,6.42492,1616.2,1615.5,6.18987]
[1743967588018,6.42492,1616.2,1615.5,12.37977]
[1743967588229,7.7585674,1616.2,1615.6,6.18962]
[1743967588524,6.911554,1616.3,1615.8,6.18875]
[1743967588525,0.724534,1616.3,1615.8,6.18875]
[1743967588694,4.85925429,1616.4,1615.9,6.16]
[1743967588879,4.85925429,1616.4,1615.9,12.34832]
[1743967589088,6.1871,1616.3,1615.9,6.16]
[1743967589615,4.85925429,1616.4,1615.9,6.16]
[1743967589616,15.20025429,1616.4,1615.9,6.16]
[1743967589837,21.38686429,1616.4,1615.9,6.16]
[1743967589995,2.13868643,1616.3,1615.9,6.16]
[1743967590199,4.85925429,1616.4,1615.9,6.16]
[1743967590395,4.85925429,1616.4,1615.9,12.34846]
[1743967590634,6.18703,1616.3,1615.9,6.16]
[1743967590839,17.23287429,1616.4,1615.9,6.16]
[1743967591009,17.23287429,1616.4,1615.5,6.16]
[1743967591010,6.42551,1616.0,1615.5,6.16]
[1743967591210,6.19036,1615.5,1615.1,6.16]
[1743967591432,6.19003,1615.5,1614.9,6.16]
[1743967591737,6.19189,1615.1,1614.9,6.16]
[1743967591946,0.2374,1615.1,1614.5,6.16]
[1743967592097,6.19273,1614.8,1614.5,6.16]
[1743967592307,6.19276,1614.8,1614.5,6.16]
[1743967592537,6.19287,1614.8,1614.5,6.16]
[1743967592738,0.7011969,1615.1,1614.5,6.16]
[1743967593043,6.19216,1615.0,1614.5,6.16]
[1743967593246,1.80511659,1615.1,1614.5,6.16]
[1743967593420,6.19225,1615.0,1614.5,6.16]
[1743967593621,0.2374,1615.1,1614.5,6.16]
[1743967593830,4.19155,1615.4,1614.6,7.0822]
[1743967593831,0.2374,1615.4,1614.6,7.0822]
[1743967594132,3.80051429,1615.0,1614.9,6.19233]
[1743967594447,3.80051429,1615.0,1614.9,12.35233]
[1743967594615,3.80051429,1615.0,1614.9,6.16]
[1743967594815,3.80051429,1615.0,1614.9,12.35233]
[1743967595120,3.80051429,1615.0,1614.9,14.206834]
[1743967595330,3.80051429,1615.0,1614.9,15.129034]
[1743967595643,3.80051429,1615.0,1614.9,18.129034]
[1743967596013,3.80051429,1615.0,1614.9,15.129034]
[1743967596245,3.80051429,1615.0,1614.9,13.27453]
[1743967596445,3.80051429,1615.0,1614.9,7.0822]
[1743967596750,3.80051429,1615.0,1614.9,13.27453]
[1743967596947,3.80051429,1615.6,1614.9,13.27453]
[1743967597103,9.99017429,1615.6,1615.0,6.16]
[1743967597323,11.63187672,1615.6,1615.0,6.16]
[1743967597576,5.44221672,1615.6,1615.1,6.19121]
[1743967597725,3.80051429,1615.6,1615.4,6.19022]
[1743967597923,3.80051429,1615.6,1615.5,6.16]
[1743967598221,3.80051429,1615.6,1615.5,12.35003]
[1743967598452,3.80051429,1615.6,1615.5,14.296275]
[1743967598622,0.9074,1616.7,1616.1,6.18755]
[1743967598823,0.9074,1616.7,1616.2,9.55038571]
[1743967599067,0.9074,1616.7,1616.2,3.36318571]
[1743967599229,1.616653,1616.7,1616.2,3.36318571]
[1743967599562,10.332,1616.9,1616.3,9.54996571]
[1743967599769,22.70182,1616.9,1616.3,3.36318571]
[1743967600071,16.5168,1616.9,1616.3,3.36318571]
[1743967600362,10.332,1616.9,1616.5,12.37218]
[1743967600569,10.332,1616.9,1616.6,3.36318571]
[1743967600870,6.18368,1617.2,1616.6,3.36318571]
[1743967601164,11.2344,1617.3,1616.7,9.54847571]
[1743967601373,0.9074,1617.6,1617.0,6.18415]
[1743967601671,0.9074,1617.6,1616.7,3.36318571]
[1743967601835,6.1844,1617.0,1616.7,3.36318571]
[1743967602050,6.18447,1617.0,1616.7,3.36318571]
[1743967602230,0.618447,1616.9,1616.7,3.36318571]
[1743967602574,6.18456,1617.0,1616.7,3.36318571]
[1743967602737,6.18505,1616.8,1616.7,3.36318571]
[1743967603078,0.9074,1617.1,1616.7,3.36318571]
[1743967603730,7.09137,1617.1,1616.7,3.36318571]
[1743967603946,10.326,1617.2,1616.7,3.36318571]
[1743967604353,7.09019,1617.4,1616.7,9.54846571]
[1743967604574,23.5932,1617.4,1616.8,3.36318571]
[1743967604773,2.35932,1617.3,1616.8,3.36318571]
[1743967604975,0.9074,1617.4,1617.0,6.18429]
[1743967605134,0.9074,1617.8,1617.3,6.18311]
[1743967605340,6.17992,1618.2,1617.4,9.60761347]
[1743967605341,7.08764,1618.1,1617.4,9.60761347]
[1743967605543,10.319,1618.2,1617.6,6.18177]
[1743967605869,11.2264,1618.4,1617.8,7.15877]
[1743967606047,0.9074,1618.4,1617.8,7.15877]
[1743967606249,16.49637,1618.6,1617.8,1.03950603]
[1743967606575,6.1806,1618.0,1617.7,3.36318571]
[1743967606745,6.18123,1617.8,1617.7,3.36318571]
[1743967607362,10.317,1618.0,1617.7,3.36318571]
[1743967607582,0.47034204,1618.6,1617.7,3.36318571]
[1743967607583,6.17797,1618.7,1617.8,3.36318571]
[1743967607887,6.1797,1618.2,1617.9,3.36318571]
[1743967608384,6.796047,1618.6,1617.9,9.54387571]
[1743967608559,6.17856,1618.5,1617.9,3.36318571]
[1743967608754,11.39252967,1618.6,1617.9,3.36318571]
[1743967608970,6.17946,1618.3,1617.9,3.36318571]
[1743967609151,6.797406,1618.3,1617.9,3.36318571]
[1743967609356,0.617946,1618.3,1617.9,3.36318571]
[1743967609980,6.1797,1618.2,1617.7,0.9777]
[1743967610185,1.525346,1618.3,1617.7,0.9777]
[1743967610386,7.704936,1618.3,1617.7,0.9777]
[1743967610549,6.17894,1618.4,1617.8,3.42498848]
[1743967610881,6.17865,1618.5,1617.8,9.54422571]
[1743967611182,18.015487,1618.6,1617.9,6.18067]
[1743967611387,6.17895,1618.4,1618.0,3.36318571]
[1743967611683,1.235753,1618.4,1617.7,0.9777]
[1743967611884,9.17875,1618.5,1617.8,6.18116]
[1743967612070,6.17896,1618.4,1617.7,7.15913]
[1743967612271,12.30097734,1618.6,1617.7,7.15913]
[1743967612272,7.703387,1618.6,1617.9,6.18063]
[1743967612452,18.007387,1618.6,1617.9,6.18062]
[1743967612651,6.17742,1618.8,1618.1,6.18008]
[1743967612959,10.301,1618.8,1618.3,6.17918]
[1743967613150,10.301,1618.8,1618.4,3.36318571]
[1743967613483,10.301,1618.8,1618.4,9.54211571]
[1743967613687,0.965,1619.2,1618.5,3.36318571]
[1743967613891,0.965,1618.5,1617.6,0.9862]
[1743967614090,9.1797,1618.2,1617.6,3.36318571]
[1743967614388,9.1797,1618.2,1617.3,0.9862]
[1743967614389,6.18192,1617.7,1617.3,3.36318571]
[1743967614589,0.06178539,1617.8,1617.4,9.54564571]
[1743967614816,6.24238539,1618.0,1617.4,3.36318571]
[1743967614992,6.24245539,1618.0,1617.4,3.36318571]
[1743967615192,6.18139,1617.8,1617.4,3.36318571]
[1743967615403,0.06178539,1617.7,1617.4,3.36318571]
[1743967615785,6.24340539,1617.7,1617.4,3.36318571]
[1743967615980,1.71582593,1617.7,1617.4,3.36318571]
[1743967616321,0.06178539,1617.7,1617.4,3.36318571]
[1743967616515,10.297,1617.8,1617.4,3.36318571]
[1743967616703,10.297,1617.8,1617.5,0.9023]
[1743967617582,3.06178539,1618.0,1617.5,0.9023]
[1743967617875,6.18123,1617.8,1617.4,3.36318571]
[1743967618079,6.18238,1617.5,1617.4,3.36318571]
[1743967618282,6.24416539,1617.5,1617.4,3.36318571]
[1743967618475,0.06178539,1617.5,1617.4,3.36318571]
[1743967618779,6.17833,1618.6,1617.5,3.36318571]
[1743967618975,0.9672,1618.7,1617.7,0.9343]
[1743967619202,6.17817,1618.6,1617.7,0.9343]
[1743967619418,6.17956,1618.3,1617.7,0.9343]
[1743967619621,6.18015,1618.1,1617.7,0.9343]
[1743967619777,6.18015,1618.1,1617.8,3.36318571]
[1743967620125,6.17977,1618.2,1617.8,3.36318571]
[1743967620289,6.17971,1618.2,1617.8,3.36318571]
[1743967620614,7.097691,1618.2,1617.8,3.36318571]
[1743967620825,6.17972,1618.2,1617.8,3.36318571]
[1743967621112,6.18046,1618.0,1617.8,3.36318571]
[1743967621512,6.1805,1618.0,1617.8,3.36318571]
[1743967621677,6.18085,1617.9,1617.8,3.36318571]
[1743967622015,6.18238,1617.5,1617.4,3.36318571]
[1743967622217,6.1829,1617.4,1617.1,3.36318571]
[1743967622415,6.18238,1617.5,1617.1,3.36318571]
[1743967622622,7.829318,1617.5,1617.1,3.36318571]
[1743967622824,6.18352,1617.2,1617.1,3.36318571]
[1743967623023,9.18315,1617.3,1617.1,3.36318571]
[1743967623320,6.18489,1616.9,1616.7,3.36318571]
[1743967623687,6.18602,1616.6,1616.3,4.29748571]
[1743967624020,6.18698,1616.3,1616.0,4.29748571]
[1743967624321,6.18698,1616.3,1616.0,3.36318571]
[1743967624322,6.18773,1616.1,1616.0,3.36318571]
[1743967624820,6.18835,1616.0,1615.7,0.9343]
[1743967624983,6.18835,1616.0,1615.6,3.36318571]
[1743967624984,6.18851,1615.9,1615.6,3.36318571]
[1743967625190,6.18792,1616.1,1615.6,3.36318571]
[1743967625525,6.18738,1616.2,1615.6,3.36318571]
[1743967625526,6.18735,1616.2,1615.6,3.69950428]
[1743967625684,16.4716,1616.4,1615.7,7.12325]
[1743967626033,10.285,1616.4,1615.9,6.18847]
[1743967626321,10.285,1616.4,1615.9,1.57405157]
[1743967626527,10.285,1616.4,1615.9,7.76226157]
[1743967626925,10.285,1616.4,1615.9,1.57405157]
[1743967627222,10.285,1616.4,1615.9,7.76254157]
[1743967627452,16.46667,1616.9,1616.2,6.18716]
[1743967627656,10.282,1616.9,1616.3,3.36318571]
[1743967627840,0.55,1616.8,1616.3,3.36318571]
[1743967628044,3.0,1616.7,1616.3,3.36318571]
[1743967628260,16.46691,1616.9,1616.3,9.55009571]
[1743967628419,10.282,1616.9,1616.4,0.9343]
[1743967628625,16.46696,1616.9,1616.5,3.36318571]
[1743967628922,6.1852,1616.8,1616.5,3.36318571]
[1743967629127,10.282,1616.9,1616.5,3.36318571]
[1743967630142,6.59789633,1618.0,1616.7,0.9343]
[1743967630352,0.65978963,1617.9,1617.1,6.1839]
[1743967630528,6.18069,1618.0,1617.2,3.36318571]
[1743967630736,6.18163,1617.7,1617.2,3.36318571]
[1743967630934,6.18127,1617.8,1617.2,3.36318571]
[1743967631257,6.1821,1617.6,1617.2,3.36318571]
[1743967631421,6.18347,1617.3,1616.8,3.36318571]
[1743967631619,6.18415,1617.1,1616.8,3.36318571]
[1743967632252,10.279,1617.2,1616.8,3.36318571]
[1743967632449,6.18511,1616.8,1616.6,0.9343]
[1743967632648,6.18571,1616.7,1616.5,3.36318571]
[1743967632822,9.18473,1616.9,1616.5,3.36318571]
[1743967633023,6.18506,1616.8,1616.5,3.36318571]
[1743967633231,10.82348941,1616.9,1616.5,3.36318571]
[1743967633725,9.18437,1617.0,1616.5,3.36318571]
[1743967634121,9.18453,1617.0,1616.5,3.36318571]
[1743967634323,1.646253,1617.1,1616.5,3.36318571]
[1743967634540,10.279,1617.2,1616.7,0.9642]
[1743967634721,10.279,1617.2,1616.7,10.51277571]
[1743967634722,11.3069,1617.2,1616.7,10.51277571]
[1743967634924,11.3069,1617.2,1616.7,4.32738571]
[1743967635137,12.36821,1617.1,1616.7,4.32738571]